[Event "*** Titled Tuesday Blitz"]
[Site "Chess.com"]
[Date "2019.11.05"]
[Round "2"]
[White "cherryandmint"]
[Black "Olga_Ustinova"]
[Result "1-0"]
[WhiteElo "2836"]
[BlackElo "2387"]
[TimeControl "180+2"]
[EndTime "13:27:12 PST"]
[Termination "cherryandmint won on time"]

1. e4 {[%clk 0:03:01.9]} 1... d5 {[%clk 0:03:00.3]} 2. exd5 {[%clk 0:03:01.9]}
2... Qxd5 {[%clk 0:03:02.2]} 3. Nc3 {[%clk 0:03:02.7]} 3... Qa5 {[%clk
0:03:03.7]} 4. d4 {[%clk 0:03:03.8]} 4... Nf6 {[%clk 0:03:04.4]} 5. Nf3 {[%clk
0:03:04.3]} 5... Bg4 {[%clk 0:03:05.5]} 6. Bd2 {[%clk 0:03:04.8]} 6... Nc6
{[%clk 0:02:23.9]} 7. Be2 {[%clk 0:02:13.3]} 7... O-O-O {[%clk 0:02:22.8]} 8.
Nb5 {[%clk 0:01:39.8]} 8... Qb6 {[%clk 0:02:23.5]} 9. c3 {[%clk 0:01:40.9]} 9...
Bxf3 {[%clk 0:02:07.9]} 10. gxf3 {[%clk 0:01:41.6]} 10... e5 {[%clk 0:02:09.2]}
11. dxe5 {[%clk 0:01:25.5]} 11... Nxe5 {[%clk 0:02:11.1]} 12. Qa4 {[%clk
0:01:25.9]} 12... a6 {[%clk 0:02:10.9]} 13. Be3 {[%clk 0:01:13.4]} 13... Bc5
{[%clk 0:02:05.1]} 14. Bxc5 {[%clk 0:00:50.3]} 14... Qxc5 {[%clk 0:02:07]} 15.
Nd4 {[%clk 0:00:51.8]} 15... Rhe8 {[%clk 0:01:53.2]} 16. O-O-O {[%clk
0:00:52.5]} 16... Ng6 {[%clk 0:01:50.6]} 17. Bc4 {[%clk 0:00:44.7]} 17... Ne5
{[%clk 0:01:48.8]} 18. Bb3 {[%clk 0:00:39.2]} 18... Kb8 {[%clk 0:01:42.4]} 19.
Rhe1 {[%clk 0:00:39.4]} 19... Nd3+ {[%clk 0:01:28.4]} 20. Rxd3 {[%clk
0:00:40.2]} 20... Rxe1+ {[%clk 0:01:27.9]} 21. Kc2 {[%clk 0:00:39.6]} 21... Rde8
{[%clk 0:01:28.8]} 22. Bxf7 {[%clk 0:00:39.3]} 22... R8e2+ {[%clk 0:01:19.3]}
23. Nxe2 {[%clk 0:00:40]} 23... Rxe2+ {[%clk 0:01:21.2]} 24. Kb3 {[%clk
0:00:41.9]} 24... Qxf2 {[%clk 0:01:21.4]} 25. Rd8+ {[%clk 0:00:43]} 25... Ka7
{[%clk 0:01:20.9]} 26. Qd4+ {[%clk 0:00:44.5]} 26... Qxd4 {[%clk 0:01:20.4]} 27.
Rxd4 {[%clk 0:00:46]} 27... Rxh2 {[%clk 0:01:21.2]} 28. Rc4 {[%clk 0:00:37.2]}
28... c6 {[%clk 0:01:19.9]} 29. Be6 {[%clk 0:00:35]} 29... h5 {[%clk 0:01:06.6]}
30. a4 {[%clk 0:00:35.3]} 30... h4 {[%clk 0:01:05.9]} 31. a5 {[%clk 0:00:36.5]}
31... g5 {[%clk 0:00:56.9]} 32. Rb4 {[%clk 0:00:37.3]} 32... Ne8 {[%clk
0:00:51.1]} 33. Rd4 {[%clk 0:00:35.3]} 33... Rf2 {[%clk 0:00:50.8]} 34. Bc8
{[%clk 0:00:31.5]} 34... Nc7 {[%clk 0:00:47.4]} 35. Bg4 {[%clk 0:00:30]} 35...
Nd5 {[%clk 0:00:39.6]} 36. Re4 {[%clk 0:00:26.8]} 36... Nf4 {[%clk 0:00:40.5]}
37. Re7 {[%clk 0:00:25.8]} 37... h3 {[%clk 0:00:41.7]} 38. Bc8 {[%clk
0:00:26.3]} 38... Kb8 {[%clk 0:00:41.9]} 39. Re8 {[%clk 0:00:16.9]} 39... Kc7
{[%clk 0:00:42.5]} 40. Bg4 {[%clk 0:00:18]} 40... h2 {[%clk 0:00:41.6]} 41. Rh8
{[%clk 0:00:19.5]} 41... Nd3 {[%clk 0:00:20.6]} 42. Kc4 {[%clk 0:00:19.7]} 42...
Ne5+ {[%clk 0:00:19.4]} 43. Kc5 {[%clk 0:00:19]} 43... Nxg4 {[%clk 0:00:20.2]}
44. fxg4 {[%clk 0:00:20.9]} 44... Rxb2 {[%clk 0:00:20.2]} 45. Rh7+ {[%clk
0:00:22.2]} 45... Kd8 {[%clk 0:00:21.7]} 46. Kd6 {[%clk 0:00:23.7]} 46... Ke8
{[%clk 0:00:23.1]} 47. Ke6 {[%clk 0:00:24.9]} 47... Kf8 {[%clk 0:00:24.7]} 48.
Kf6 {[%clk 0:00:26.3]} 48... Kg8 {[%clk 0:00:26.1]} 49. Rh5 {[%clk 0:00:27.4]}
49... Ra2 {[%clk 0:00:18.6]} 50. Rxg5+ {[%clk 0:00:28.1]} 50... Kf8 {[%clk
0:00:19]} 51. Rh5 {[%clk 0:00:30]} 51... Ke8 {[%clk 0:00:20.6]} 52. g5 {[%clk
0:00:29.6]} 52... Rf2+ {[%clk 0:00:16.1]} 53. Kg7 {[%clk 0:00:30.3]} 53... Ke7
{[%clk 0:00:17.2]} 54. g6 {[%clk 0:00:31.8]} 54... Ke6 {[%clk 0:00:17.4]} 55.
Kg8 {[%clk 0:00:28.9]} 55... Rg2 {[%clk 0:00:14.1]} 56. g7 {[%clk 0:00:26.3]}
56... Kf6 {[%clk 0:00:15.5]} 57. Rh6+ {[%clk 0:00:27.4]} 57... Rg6 {[%clk
0:00:13.2]} 58. Rxg6+ {[%clk 0:00:21.1]} 58... Kxg6 {[%clk 0:00:15.1]} 59. Kf8
{[%clk 0:00:22.5]} 59... h1=Q {[%clk 0:00:16.5]} 60. g8=Q+ {[%clk 0:00:24.4]}
60... Kf6 {[%clk 0:00:15.3]} 61. Qf7+ {[%clk 0:00:25.5]} 61... Ke5 {[%clk
0:00:15.5]} 62. Qxb7 {[%clk 0:00:23.9]} 62... Qf3+ {[%clk 0:00:15.9]} 63. Ke8
{[%clk 0:00:23.1]} 63... Kd5 {[%clk 0:00:08.3]} 64. Qb3+ {[%clk 0:00:20.6]}
64... Kd6 {[%clk 0:00:06.8]} 65. Qb4+ {[%clk 0:00:21.7]} 65... c5 {[%clk
0:00:06.5]} 66. Qb8+ {[%clk 0:00:21.3]} 66... Ke6 {[%clk 0:00:06.5]} 67. Qc8+
{[%clk 0:00:22.1]} 67... Kd6 {[%clk 0:00:07.1]} 68. Qxa6+ {[%clk 0:00:22.5]}
68... Qc6+ {[%clk 0:00:07.1]} 69. Qxc6+ {[%clk 0:00:18.5]} 69... Kxc6 {[%clk
0:00:09]} 70. c4 {[%clk 0:00:15.2]} 70... Kd6 {[%clk 0:00:02.9]} 71. Kd8 {[%clk
0:00:16.1]} 71... Kc6 {[%clk 0:00:04.1]} 72. Ke7 {[%clk 0:00:17.5]} 72... Kb7
{[%clk 0:00:05]} 73. Kd6 {[%clk 0:00:18.7]} 73... Ka6 {[%clk 0:00:06.9]} 74.
Kxc5 {[%clk 0:00:20.3]} 74... Kxa5 {[%clk 0:00:08.8]} 75. Kc6 {[%clk 0:00:21.8]}
1-0

[Event "*** Titled Tuesday Blitz"]
[Site "Chess.com"]
[Date "2019.11.05"]
[Round "2"]
[White "r31415"]
[Black "chanchakman"]
[Result "1/2-1/2"]
[WhiteElo "2435"]
[BlackElo "2163"]
[TimeControl "180+2"]
[EndTime "13:27:15 PST"]
[Termination "Game drawn by agreement"]

1. Nf3 {[%clk 0:03:01.9]} 1... Nf6 {[%clk 0:02:59.5]} 2. c4 {[%clk 0:03:02.4]}
2... g6 {[%clk 0:03:00.4]} 3. g3 {[%clk 0:02:59.9]} 3... Bg7 {[%clk 0:03:01.2]}
4. Bg2 {[%clk 0:03:01.4]} 4... O-O {[%clk 0:03:02]} 5. O-O {[%clk 0:03:03]} 5...
d6 {[%clk 0:03:02.7]} 6. b3 {[%clk 0:03:00.9]} 6... Ne4 {[%clk 0:02:52.4]} 7. d4
{[%clk 0:03:01.6]} 7... c5 {[%clk 0:02:52.2]} 8. Bb2 {[%clk 0:03:02.2]} 8... Nc6
{[%clk 0:02:52]} 9. Nbd2 {[%clk 0:02:53.3]} 9... Nxd2 {[%clk 0:02:44.8]} 10.
Qxd2 {[%clk 0:02:54.5]} 10... cxd4 {[%clk 0:02:45.7]} 11. Nxd4 {[%clk
0:02:51.9]} 11... Nxd4 {[%clk 0:02:41]} 12. Bxd4 {[%clk 0:02:52.7]} 12... Bxd4
{[%clk 0:02:41.4]} 13. Qxd4 {[%clk 0:02:53.7]} 13... Qa5 {[%clk 0:02:23.4]} 14.
f4 {[%clk 0:02:36.5]} 14... Qc5 {[%clk 0:02:07.7]} 15. Qxc5 {[%clk 0:02:33.9]}
15... dxc5 {[%clk 0:02:08.7]} 16. Rad1 {[%clk 0:02:34.4]} 16... Rb8 {[%clk
0:02:07.9]} 17. Rd2 {[%clk 0:02:28.3]} 17... Be6 {[%clk 0:01:52.1]} 18. Rfd1
{[%clk 0:02:29.2]} 18... b5 {[%clk 0:01:52.8]} 19. cxb5 {[%clk 0:01:54.6]} 19...
Rxb5 {[%clk 0:01:52]} 20. Rc1 {[%clk 0:01:55.9]} 20... a5 {[%clk 0:01:51.9]} 21.
Rdc2 {[%clk 0:01:50.5]} 21... Rc8 {[%clk 0:01:49.5]} 22. Bf1 {[%clk 0:01:33.6]}
22... Rb4 {[%clk 0:01:42.4]} 23. Rxc5 {[%clk 0:01:08.7]} 23... Rxc5 {[%clk
0:01:38.1]} 24. Rxc5 {[%clk 0:01:10.6]} 24... a4 {[%clk 0:01:39.2]} 25. Kf2
{[%clk 0:00:49.4]} 25... axb3 {[%clk 0:01:39.3]} 26. axb3 {[%clk 0:00:49.9]}
26... Rxb3 {[%clk 0:01:39.8]} 27. Rc7 {[%clk 0:00:47.1]} 27... Kf8 {[%clk
0:01:39.4]} 28. Bg2 {[%clk 0:00:44.7]} 28... h5 {[%clk 0:01:33.7]} 29. Be4
{[%clk 0:00:38.9]} 29... Rb4 {[%clk 0:01:31.3]} 30. Bf3 {[%clk 0:00:38.1]} 30...
Rb2 {[%clk 0:01:30.3]} 31. Ra7 {[%clk 0:00:38.6]} 31... Bc4 {[%clk 0:01:23.7]}
32. Ke3 {[%clk 0:00:37.6]} 32... Be6 {[%clk 0:01:16.8]} 33. Kd4 {[%clk
0:00:38.4]} 33... Rd2+ {[%clk 0:01:15.2]} 34. Kc3 {[%clk 0:00:33.3]} 34... Rd7
{[%clk 0:01:10.7]} 35. Ra5 {[%clk 0:00:26.5]} 35... Rc7+ {[%clk 0:01:08.5]} 36.
Kd4 {[%clk 0:00:26.5]} 36... Rd7+ {[%clk 0:01:09.2]} 37. Kc3 {[%clk 0:00:22.4]}
37... Rc7+ {[%clk 0:01:09.8]} 38. Kd3 {[%clk 0:00:23.8]} 38... Rd7+ {[%clk
0:01:10.8]} 39. Ke3 {[%clk 0:00:25.3]} 39... Rc7 {[%clk 0:01:11.2]} 40. Kd2
{[%clk 0:00:25.1]} 40... Rd7+ {[%clk 0:01:12]} 41. Ke1 {[%clk 0:00:24.9]} 41...
Rc7 {[%clk 0:01:11.8]} 42. Kf2 {[%clk 0:00:25.9]} 42... Rc3 {[%clk 0:01:11.5]}
43. Ra7 {[%clk 0:00:23.7]} 43... Rb3 {[%clk 0:01:03.6]} 44. Be4 {[%clk
0:00:22.6]} 44... Rb4 {[%clk 0:01:00.1]} 45. Bd3 {[%clk 0:00:22.8]} 45... Rd4
{[%clk 0:01:00]} 46. Ke3 {[%clk 0:00:20.5]} 46... Rd7 {[%clk 0:01:00.7]} 47. Ra5
{[%clk 0:00:19.6]} 47... Rd5 {[%clk 0:00:55.6]} 48. Ra7 {[%clk 0:00:17.3]} 48...
Rd7 {[%clk 0:00:56]} 49. Ra5 {[%clk 0:00:17.5]} 49... Rd5 {[%clk 0:00:56.9]} 50.
Ra1 {[%clk 0:00:18.3]} 50... Kg7 {[%clk 0:00:54.4]} 51. Ra6 {[%clk 0:00:10.1]}
51... Bf5 {[%clk 0:00:51.9]} 52. Bc4 {[%clk 0:00:07.9]} 52... Rc5 {[%clk
0:00:40.8]} 53. Bd3 {[%clk 0:00:08.2]} 53... Rc3 {[%clk 0:00:36.8]} 54. Ra5
{[%clk 0:00:06.8]} 54... Bxd3 {[%clk 0:00:36.7]} 55. exd3 {[%clk 0:00:07.6]}
55... Rc6 {[%clk 0:00:36.9]} 56. h3 {[%clk 0:00:05.1]} 56... Rc1 {[%clk
0:00:35.4]} 57. h4 {[%clk 0:00:05.7]} 57... Rg1 {[%clk 0:00:35.6]} 58. Kf3
{[%clk 0:00:07]} 58... Rd1 {[%clk 0:00:36.6]} 59. Rd5 {[%clk 0:00:07.4]} 59...
e6 {[%clk 0:00:35.1]} 60. Rd8 {[%clk 0:00:08.3]} 60... Kf6 {[%clk 0:00:35]} 61.
Ke2 {[%clk 0:00:09.8]} 61... Rg1 {[%clk 0:00:35.7]} 62. Kf2 {[%clk 0:00:11.4]}
62... Rd1 {[%clk 0:00:36]} 63. Ke3 {[%clk 0:00:12.9]} 63... Rg1 {[%clk
0:00:36.6]} 64. Kf3 {[%clk 0:00:14.2]} 64... Rf1+ {[%clk 0:00:37.6]} 65. Ke3
{[%clk 0:00:15]} 65... Re1+ {[%clk 0:00:38.3]} 66. Kf2 {[%clk 0:00:15.5]} 66...
Rd1 {[%clk 0:00:39.4]} 67. Rd4 {[%clk 0:00:15.9]} 67... Rd2+ {[%clk 0:00:39.7]}
68. Ke3 {[%clk 0:00:16.5]} 68... Rg2 {[%clk 0:00:40.5]} 69. Kf3 {[%clk
0:00:17.6]} 69... Rg1 {[%clk 0:00:41.6]} 70. Rd7 {[%clk 0:00:18]} 70... Rd1
{[%clk 0:00:40.5]} 71. d4 {[%clk 0:00:18.9]} 71... Rd3+ {[%clk 0:00:39.7]} 72.
Kf2 {[%clk 0:00:19.7]} 72... Rd2+ {[%clk 0:00:40.4]} 73. Ke3 {[%clk 0:00:20.9]}
73... Rd1 {[%clk 0:00:41.2]} 74. Kf3 {[%clk 0:00:22.8]} 74... Rd3+ {[%clk
0:00:42.2]} 75. Kf2 {[%clk 0:00:23.6]} 75... Rd2+ {[%clk 0:00:43.2]} 76. Ke3
{[%clk 0:00:25]} 76... Rd1 {[%clk 0:00:44.3]} 77. Rd8 {[%clk 0:00:10.6]} 77...
Re1+ {[%clk 0:00:42.8]} 78. Kf2 {[%clk 0:00:10.6]} 78... Rd1 {[%clk 0:00:43.8]}
79. Kf3 {[%clk 0:00:11.5]} 79... Rd3+ {[%clk 0:00:44.9]} 80. Kf2 {[%clk
0:00:12]} 80... Rd2+ {[%clk 0:00:46]} 81. Ke3 {[%clk 0:00:13]} 81... Rd1 {[%clk
0:00:47.1]} 82. Rd7 {[%clk 0:00:12.6]} 1/2-1/2

[Event "*** Titled Tuesday Blitz"]
[Site "Chess.com"]
[Date "2019.11.05"]
[Round "2"]
[White "IgorBjelobrk"]
[Black "anon102030"]
[Result "1-0"]
[WhiteElo "2569"]
[BlackElo "2792"]
[TimeControl "180+2"]
[EndTime "13:29:03 PST"]
[Termination "IgorBjelobrk won on time"]

1. d4 {[%clk 0:02:23.5]} 1... Nf6 {[%clk 0:03:00.1]} 2. c4 {[%clk 0:02:23.6]}
2... e5 {[%clk 0:03:01.1]} 3. dxe5 {[%clk 0:02:23.9]} 3... Ng4 {[%clk
0:03:02.7]} 4. Bf4 {[%clk 0:02:24.2]} 4... Nc6 {[%clk 0:03:04]} 5. e3 {[%clk
0:02:24.7]} 5... Ngxe5 {[%clk 0:03:04.4]} 6. Nf3 {[%clk 0:02:24.5]} 6... Bb4+
{[%clk 0:03:04.1]} 7. Nbd2 {[%clk 0:02:24.7]} 7... Nxf3+ {[%clk 0:02:55.1]} 8.
gxf3 {[%clk 0:02:25.1]} 8... Qf6 {[%clk 0:02:52.2]} 9. a3 {[%clk 0:02:22.8]}
9... Bxd2+ {[%clk 0:02:46.8]} 10. Qxd2 {[%clk 0:02:24.7]} 10... d6 {[%clk
0:02:48.1]} 11. Be2 {[%clk 0:02:24.1]} 11... Bh3 {[%clk 0:02:46]} 12. Rg1 {[%clk
0:02:20.7]} 12... h6 {[%clk 0:02:47]} 13. O-O-O {[%clk 0:02:20.7]} 13... O-O-O
{[%clk 0:02:41.8]} 14. Rg3 {[%clk 0:02:02.6]} 14... Be6 {[%clk 0:02:39.1]} 15.
e4 {[%clk 0:02:00.5]} 15... Ne5 {[%clk 0:02:27]} 16. b3 {[%clk 0:02:00.9]} 16...
Ng6 {[%clk 0:02:16.8]} 17. Be3 {[%clk 0:02:01]} 17... Qa1+ {[%clk 0:02:17.6]}
18. Kc2 {[%clk 0:02:02.2]} 18... Qa2+ {[%clk 0:02:07.1]} 19. Kc3 {[%clk
0:01:59.4]} 19... Qxa3 {[%clk 0:02:09]} 20. Qd4 {[%clk 0:01:47.2]} 20... a5
{[%clk 0:02:03.6]} 21. Qa7 {[%clk 0:01:09.2]} 21... Qb4+ {[%clk 0:01:42.4]} 22.
Kc2 {[%clk 0:01:09.9]} 22... Kd7 {[%clk 0:01:05.5]} 23. Bd2 {[%clk 0:00:49.4]}
23... Qb6 {[%clk 0:01:06.2]} 24. Qxb6 {[%clk 0:00:37.3]} 24... cxb6 {[%clk
0:01:08.1]} 25. f4 {[%clk 0:00:35.9]} 25... Nh4 {[%clk 0:00:23.7]} 26. f5 {[%clk
0:00:31.9]} 26... Nxf5 {[%clk 0:00:25.2]} 27. exf5 {[%clk 0:00:33.1]} 27...
Bxf5+ {[%clk 0:00:27.1]} 28. Bd3 {[%clk 0:00:34.4]} 28... Bxd3+ {[%clk
0:00:28.3]} 29. Kxd3 {[%clk 0:00:36.3]} 29... g6 {[%clk 0:00:29.2]} 30. Be3
{[%clk 0:00:37.6]} 30... Kc6 {[%clk 0:00:30.1]} 31. Rg4 {[%clk 0:00:38.5]} 31...
d5 {[%clk 0:00:30]} 32. Kc2 {[%clk 0:00:39.4]} 32... b5 {[%clk 0:00:27.6]} 33.
cxd5+ {[%clk 0:00:37.2]} 33... Rxd5 {[%clk 0:00:27.7]} 34. Rxd5 {[%clk
0:00:38.4]} 34... Kxd5 {[%clk 0:00:29.6]} 35. Rd4+ {[%clk 0:00:39.5]} 35... Kc6
{[%clk 0:00:31]} 36. Re4 {[%clk 0:00:38.6]} 36... Kd6 {[%clk 0:00:27.5]} 37.
Bf4+ {[%clk 0:00:38.7]} 37... Kd7 {[%clk 0:00:25.9]} 38. Re5 {[%clk 0:00:39.2]}
38... g5 {[%clk 0:00:23.5]} 39. Bd2 {[%clk 0:00:39.7]} 39... a4 {[%clk
0:00:21.4]} 40. Rxb5 {[%clk 0:00:40.7]} 40... axb3+ {[%clk 0:00:22.6]} 41. Kxb3
{[%clk 0:00:41.6]} 41... Kc6 {[%clk 0:00:24.5]} 42. Rf5 {[%clk 0:00:41.6]} 42...
Rd8 {[%clk 0:00:26]} 43. Bc3 {[%clk 0:00:41.2]} 43... Rd3 {[%clk 0:00:24.6]} 44.
Rxf7 {[%clk 0:00:41.6]} 44... Rh3 {[%clk 0:00:26.5]} 45. Rf6+ {[%clk 0:00:38.8]}
45... Kc5 {[%clk 0:00:26.8]} 46. Kc2 {[%clk 0:00:39]} 46... Rxh2 {[%clk
0:00:27]} 47. Kd2 {[%clk 0:00:40]} 47... b5 {[%clk 0:00:27.5]} 48. Be5 {[%clk
0:00:41]} 48... Rh3 {[%clk 0:00:26.5]} 49. Bg3 {[%clk 0:00:42.1]} 49... b4
{[%clk 0:00:25.3]} 50. Kd3 {[%clk 0:00:42.2]} 50... Rh1 {[%clk 0:00:26.6]} 51.
Rf5+ {[%clk 0:00:43.2]} 51... Kc6 {[%clk 0:00:26.4]} 52. Kc4 {[%clk 0:00:44.5]}
52... Kd7 {[%clk 0:00:21.3]} 53. Kxb4 {[%clk 0:00:44.7]} 53... Ke6 {[%clk
0:00:23]} 54. Rf8 {[%clk 0:00:45.1]} 54... Ke7 {[%clk 0:00:23.9]} 55. Rh8 {[%clk
0:00:45.5]} 55... h5 {[%clk 0:00:23.9]} 56. Kc4 {[%clk 0:00:44.1]} 56... h4
{[%clk 0:00:21.5]} 57. Be5 {[%clk 0:00:44.4]} 57... Ke6 {[%clk 0:00:23]} 58. Bd4
{[%clk 0:00:44.4]} 58... g4 {[%clk 0:00:20.7]} 59. Kd3 {[%clk 0:00:39.7]} 59...
Kf5 {[%clk 0:00:19.8]} 60. Rf8+ {[%clk 0:00:39.2]} 60... Kg6 {[%clk 0:00:20.8]}
61. Ke4 {[%clk 0:00:40.4]} 61... h3 {[%clk 0:00:17.4]} 62. Be5 {[%clk
0:00:41.5]} 62... Rf1 {[%clk 0:00:15.8]} 63. Ke3 {[%clk 0:00:41]} 63... Re1+
{[%clk 0:00:10.7]} 64. Kd4 {[%clk 0:00:41.4]} 64... Rg1 {[%clk 0:00:12.6]} 65.
Rh8 {[%clk 0:00:41.3]} 65... Kf5 {[%clk 0:00:11.3]} 66. Bg3 {[%clk 0:00:41.8]}
66... Rd1+ {[%clk 0:00:11.5]} 67. Ke3 {[%clk 0:00:42.8]} 67... Re1+ {[%clk
0:00:12.6]} 68. Kd2 {[%clk 0:00:43.5]} 68... Rb1 {[%clk 0:00:11.3]} 69. Rh5+
{[%clk 0:00:43.2]} 69... Kg6 {[%clk 0:00:11.9]} 70. Rh4 {[%clk 0:00:44.3]} 70...
Kg5 {[%clk 0:00:12.5]} 71. Rh8 {[%clk 0:00:45.4]} 71... Rb2+ {[%clk 0:00:13.6]}
72. Ke3 {[%clk 0:00:46.5]} 72... Rb3+ {[%clk 0:00:14.8]} 73. Ke4 {[%clk
0:00:47.8]} 73... Rb4+ {[%clk 0:00:15.4]} 74. Ke5 {[%clk 0:00:49.1]} 74... Rb5+
{[%clk 0:00:16.7]} 75. Ke6 {[%clk 0:00:49.5]} 75... Rb6+ {[%clk 0:00:17]} 76.
Bd6 {[%clk 0:00:50.1]} 76... Ra6 {[%clk 0:00:16.4]} 77. Rg8+ {[%clk 0:00:49.6]}
77... Kh6 {[%clk 0:00:16.8]} 78. Rxg4 {[%clk 0:00:47.7]} 78... Kh5 {[%clk
0:00:14.4]} 79. Rg8 {[%clk 0:00:47.5]} 79... Ra2 {[%clk 0:00:15.4]} 80. Rh8+
{[%clk 0:00:48.2]} 80... Kg4 {[%clk 0:00:16.5]} 81. Bg3 {[%clk 0:00:49.3]} 81...
Ra6+ {[%clk 0:00:14.1]} 82. Kd5 {[%clk 0:00:49.6]} 82... Ra5+ {[%clk 0:00:15.2]}
83. Kc6 {[%clk 0:00:51]} 83... Ra6+ {[%clk 0:00:16.3]} 84. Kb5 {[%clk
0:00:52.3]} 84... Ra2 {[%clk 0:00:17]} 85. Rh4+ {[%clk 0:00:53.4]} 85... Kf3
{[%clk 0:00:16.6]} 86. Rxh3 {[%clk 0:00:55]} 86... Kg4 {[%clk 0:00:16.2]} 87.
Rh4+ {[%clk 0:00:56]} 87... Kg5 {[%clk 0:00:18.1]} 88. Rc4 {[%clk 0:00:56.1]}
88... Kf5 {[%clk 0:00:18.5]} 89. Kc5 {[%clk 0:00:57.4]} 89... Ke6 {[%clk
0:00:19]} 90. Kd4 {[%clk 0:00:58.5]} 90... Rd2+ {[%clk 0:00:19.1]} 91. Ke3
{[%clk 0:00:59.5]} 91... Ra2 {[%clk 0:00:21]} 92. Rc3 {[%clk 0:01:00.2]} 92...
Ra6 {[%clk 0:00:20.3]} 93. Kf3 {[%clk 0:01:00.7]} 93... Kf5 {[%clk 0:00:21.5]}
94. Re3 {[%clk 0:01:01.6]} 94... Ra4 {[%clk 0:00:22.2]} 95. Re5+ {[%clk
0:01:02.2]} 95... Kf6 {[%clk 0:00:23.7]} 96. Kg2 {[%clk 0:01:03.4]} 96... Ra3
{[%clk 0:00:24.4]} 97. Re3 {[%clk 0:01:04.5]} 97... Ra2 {[%clk 0:00:25.2]} 98.
Be5+ {[%clk 0:01:05.1]} 98... Kf5 {[%clk 0:00:26.2]} 99. Kg3 {[%clk 0:01:05.7]}
99... Rc2 {[%clk 0:00:27.1]} 100. f4 {[%clk 0:01:06.6]} 100... Rc1 {[%clk
0:00:27.6]} 101. Kf3 {[%clk 0:01:07]} 101... Rf1+ {[%clk 0:00:28.2]} 102. Ke2
{[%clk 0:01:08.2]} 102... Rb1 {[%clk 0:00:30.1]} 103. Rg3 {[%clk 0:01:09]}
103... Ke4 {[%clk 0:00:29.1]} 104. Kf2 {[%clk 0:01:10.3]} 104... Rc1 {[%clk
0:00:29.5]} 105. Kg2 {[%clk 0:01:11.5]} 105... Kf5 {[%clk 0:00:30.1]} 106. Re3
{[%clk 0:01:10.1]} 106... Kg4 {[%clk 0:00:28.9]} 107. Bd6 {[%clk 0:01:08.8]}
107... Rc2+ {[%clk 0:00:27.4]} 108. Kf1 {[%clk 0:01:10]} 108... Rc1+ {[%clk
0:00:28.4]} 109. Ke2 {[%clk 0:01:10.8]} 109... Rc2+ {[%clk 0:00:29]} 110. Kd3
{[%clk 0:01:11.8]} 110... Rc1 {[%clk 0:00:30.2]} 111. Ke4 {[%clk 0:01:13]}
111... Rc4+ {[%clk 0:00:31.3]} 112. Kd5 {[%clk 0:01:12.4]} 112... Ra4 {[%clk
0:00:32.1]} 113. Ke6 {[%clk 0:01:13.3]} 113... Ra5 {[%clk 0:00:32.1]} 114. f5
{[%clk 0:01:12.2]} 114... Kg5 {[%clk 0:00:18.1]} 115. f6 {[%clk 0:01:12.6]}
115... Ra2 {[%clk 0:00:13.8]} 116. f7 {[%clk 0:01:12]} 116... Rf2 {[%clk
0:00:05.8]} 117. f8=Q {[%clk 0:01:11.4]} 1-0